fUST/lending_fUST_20240115
["ID","MTS","AMOUNT","RATE_DAILY","PERIOD"]
[311625022,1705266644435,-500.0,0.00027671,2]
[311625023,1705266644446,-500.0,0.00027671,2]
[311625024,1705266644455,-500.0,0.00027671,2]
[311625025,1705266644464,-1425.76,0.00027671,2]
[311625026,1705266644473,-3191.36,0.00027671,2]
[311625027,1705266644482,-500.0,0.00027671,2]
[311625028,1705266644492,-500.0,0.00027671,2]
[311625029,1705266644501,-500.0,0.00027671,2]
[311625030,1705266644510,-500.0,0.00027671,2]
[311625031,1705266644519,-500.0,0.00027671,2]
[311625032,1705266644528,-500.0,0.00027671,2]
[311625033,1705266644538,-500.0,0.00027671,2]
[311625034,1705266644547,-500.0,0.00027671,2]
[311625035,1705266644558,-500.0,0.00027671,2]
[311625036,1705266644568,-500.0,0.00027671,2]
[311625037,1705266644579,-500.41,0.00027671,2]
[311625038,1705266644588,-500.0,0.00027671,2]
[311625039,1705266644597,-537.38332628,0.00027671,2]
[311625040,1705266644606,-500.0,0.00027671,2]
[311625041,1705266644614,-500.0,0.00027671,2]
[311625042,1705266644623,-500.0,0.00027671,2]
[311625043,1705266644632,-500.0,0.00027671,2]
[311625044,1705266644640,-1544.52,0.00027671,2]
[311625045,1705266644649,-6716.26,0.00027671,2]
[311625046,1705266644658,-500.0,0.00027671,2]
[311625047,1705266644667,-27396.58,0.00027671,2]
[311625048,1705266644676,-523.53850014,0.00027671,2]
[311625049,1705266644685,-500.0,0.00027671,2]
[311625050,1705266644694,-2300.39,0.00027671,2]
[311625051,1705266644703,-1286.67,0.00027671,2]
[311625052,1705266644712,-2826.12,0.00027671,2]
[311625053,1705266644721,-20020.85,0.00027671,2]
[311625054,1705266644731,-1528.79,0.00027671,2]
[311625055,1705266644740,-500.0,0.00027671,2]
[311625056,1705266644750,-500.0,0.00027671,2]
[311625057,1705266644759,-218.24059673,0.00027671,2]
[311625058,1705266644768,-763.67,0.00027671,2]
[311625059,1705266644778,-500.0,0.00027671,2]
[311625060,1705266644787,-945.45,0.00027671,2]
[311625061,1705266644795,-500.0,0.00027671,2]
[311625062,1705266644805,-500.0,0.00027671,2]
[311625063,1705266644815,-2834.52,0.00027671,2]
[311625064,1705266644825,-500.0,0.00027671,2]
[311625065,1705266644834,-500.0,0.00027671,2]
[311625066,1705266644843,-500.0,0.00027671,2]
[311625067,1705266644852,-500.0,0.00027671,2]
[311625068,1705266644862,-500.0,0.00027671,2]
[311625069,1705266644870,-500.0,0.00027671,2]
[311625070,1705266644880,-500.0,0.00027671,2]
[311625071,1705266644889,-500.0,0.00027671,2]
[311625072,1705266644899,-500.0,0.00027671,2]
[311625073,1705266644908,-500.0,0.00027671,2]
[311625074,1705266644918,-826.32,0.00027671,2]
[311625075,1705266644928,-500.0,0.00027671,2]
[311625076,1705266644938,-376.85988352,0.00027671,2]
[311625077,1705266644947,-500.0,0.00027671,2]
[311625078,1705266644957,-500.0,0.00027671,2]
[311625079,1705266644966,-500.0,0.00027671,2]
[311625080,1705266644975,-500.0,0.00027671,2]
[311625081,1705266644984,-1177.91,0.00027671,2]
[311625082,1705266644993,-500.0,0.00027671,2]
[311625083,1705266645002,-7712.34,0.00027671,2]
[311625084,1705266645011,-500.0,0.00027671,2]
[311625085,1705266645020,-500.0,0.00027671,2]
[311625086,1705266645029,-524.16,0.00027671,2]
[311625087,1705266645039,-500.0,0.00027671,2]
[311625088,1705266645048,-500.0,0.00027671,2]
[311625089,1705266645058,-630.18856611,0.00027671,2]
[311625090,1705266645068,-500.0,0.00027671,2]
[311625091,1705266645077,-512.92548497,0.00027671,2]
[311625092,1705266645090,-500.0,0.00027671,2]
[311625093,1705266645098,-1786.88,0.00027671,2]
[311625094,1705266645109,-153.0,0.00027671,2]
[311625095,1705266645118,-153.0,0.00027671,2]
[311625096,1705266645128,-153.0,0.00027671,2]
[311625097,1705266645137,-688.18928243,0.000277,2]
[311625098,1705266645146,-500.0,0.00027808,2]
[311625099,1705266645155,-470.4,0.00027944,4]
[311625100,1705266645164,-477.39420188,0.00027944,4]
[311625101,1705266645173,-258.11712698,0.00027944,4]
[311625102,1705266645182,-496.72617691,0.00027944,4]
[311625103,1705266645192,-500.0,0.00027944,4]
[311625104,1705266645201,-500.0,0.00027944,2]
[311625105,1705266645211,-500.0,0.00027944,2]
[311625106,1705266645220,-500.0,0.00027944,2]
[311625107,1705266645230,-500.0,0.00027944,2]
[311625108,1705266645239,-500.0,0.00027944,2]
[311625109,1705266645248,-500.0,0.00027944,2]
[311625110,1705266645258,-642.91,0.00027944,2]
[311625111,1705266645267,-2201.288509,0.00027945,2]
[311625112,1705266645276,-2201.288509,0.00027945,2]
[311625113,1705266645287,-151.0,0.00027945,2]
[311625114,1705266645298,-151.0,0.00027945,2]
[311625115,1705266645308,-151.0,0.00027945,2]
[311625116,1705266645319,-504.19080815,0.00027945,2]
[311625117,1705266645328,-500.0,0.00027945,2]
[311625118,1705266645338,-500.0,0.00027945,2]
[311625119,1705266645346,-500.0,0.00027945,2]
[311625120,1705266645355,-500.0,0.00027945,2]
[311625121,1705266645364,-500.0,0.00027945,2]
[311625122,1705266645373,-500.0,0.00027945,2]
[311625123,1705266645382,-500.0,0.00027945,2]
[311625124,1705266645391,-500.0,0.00027945,2]
[311625125,1705266645400,-500.0,0.00027945,2]
[311625126,1705266645409,-500.0,0.00027945,2]
[311625127,1705266645418,-500.0,0.00027945,2]
[311625128,1705266645426,-500.0,0.00027945,2]
[311625129,1705266645436,-500.0,0.00027945,2]
[311625130,1705266645445,-500.0,0.00027945,2]
[311625131,1705266645454,-1159.91,0.00027945,2]
[311625132,1705266645463,-500.0,0.00027945,2]
[311625133,1705266645473,-534.94,0.00027945,2]
[311625134,1705266645483,-820.87,0.00027945,2]
[311625135,1705266645492,-1441.28,0.00027945,2]
[311625136,1705266645502,-500.0,0.00027945,2]
[311625137,1705266645511,-500.0,0.00027945,2]
[311625138,1705266645520,-500.0,0.00027945,2]
[311625139,1705266645529,-500.0,0.00027945,2]
[311625140,1705266645538,-500.0,0.00027945,2]
[311625141,1705266645549,-500.0,0.00027945,2]
[311625142,1705266645558,-500.0,0.00027945,2]
[311625143,1705266645572,-753.26,0.00027945,2]
[311625144,1705266645581,-500.0,0.00027945,2]
[311625145,1705266645591,-500.0,0.00027945,2]
[311625146,1705266645600,-508.23488749,0.00027945,2]
[311625147,1705266645609,-2434.17,0.00027945,2]
[311625148,1705266645618,-1022.38,0.00027945,2]
[311625149,1705266645628,-500.0,0.00027945,2]
[311625150,1705266645637,-503.8784956,0.00027945,2]
[311625151,1705266645647,-500.0,0.00027945,2]
[311625152,1705266645656,-500.0,0.00027945,2]
[311625153,1705266645665,-500.0,0.00027945,2]
[311625154,1705266645674,-500.0,0.00027945,2]
[311625155,1705266645684,-500.0,0.00027945,2]
[311625156,1705266645693,-500.0,0.00027945,2]
[311625157,1705266645703,-794.99,0.00027945,2]
[311625158,1705266645714,-320.31361279,0.00027945,2]
[311625159,1705266645725,-1823.32,0.00027945,2]
[311625160,1705266645734,-722.39,0.00027945,2]
[311625161,1705266645743,-500.0,0.00027945,2]
[311625162,1705266645753,-500.0,0.00027945,2]
[311625163,1705266645762,-500.0,0.00027945,2]
[311625164,1705266645771,-500.0,0.00027945,2]
[311625165,1705266645852,-500.0,0.00027945,2]
[311625166,1705266645861,-500.0,0.00027945,2]
[311625167,1705266645870,-500.0,0.00027945,2]
[311625168,1705266645879,-500.0,0.00027945,2]
[311625169,1705266645888,-500.0,0.00027945,2]
[311625170,1705266645898,-500.0,0.00027945,2]
[311625171,1705266645906,-500.0,0.00027945,2]
[311625172,1705266645915,-500.0,0.00027945,2]
[311625173,1705266645924,-500.0,0.00027945,2]
[311625174,1705266645933,-500.0,0.00027945,2]
[311625175,1705266645942,-500.0,0.00027945,2]
[311625176,1705266645953,-500.0,0.00027945,2]
[311625177,1705266645962,-500.0,0.00027945,2]
[311625178,1705266645971,-500.0,0.00027945,2]
[311625179,1705266645980,-258.34941335,0.00027945,2]
[311625180,1705266645989,-500.0,0.00027945,2]
[311625181,1705266645998,-521.31812588,0.00027945,2]
[311625182,1705266646007,-500.0,0.00027945,2]
[311625183,1705266646017,-794.56,0.00027945,2]
[311625184,1705266646025,-500.0,0.00027945,2]
[311625185,1705266646034,-564.37200595,0.00027945,2]
[311625187,1705266646043,-606.46,0.00027945,2]
[311625189,1705266646052,-500.0,0.00027945,2]
[311625191,1705266646061,-500.0,0.00027945,2]
[311625192,1705266646072,-876.52,0.00027945,2]
[311625193,1705266646081,-508.10253494,0.00027945,2]
[311625194,1705266646090,-500.0,0.00027945,2]
[311625195,1705266646099,-658.71,0.00027945,2]
[311625196,1705266646109,-500.0,0.00027945,2]
[311625197,1705266646118,-167.07286369,0.00027945,2]
[311625198,1705266646126,-500.0,0.00027945,2]
[311625199,1705266646135,-500.0,0.00027945,2]
[311625200,1705266646144,-500.0,0.00027945,2]
[311625201,1705266646153,-843.34,0.00027945,2]
[311625202,1705266646162,-1628.13,0.00027945,2]
[311625203,1705266646170,-1334.75,0.00027945,2]
[311625204,1705266646179,-500.0,0.00027945,2]
[311625205,1705266646188,-500.0,0.00027945,2]
[311625206,1705266646197,-500.0,0.00027945,2]
[311625207,1705266646206,-500.0,0.00027945,2]
[311625208,1705266646215,-500.0,0.00027945,2]
[311625209,1705266646225,-500.0,0.00027945,2]
[311625210,1705266646234,-7019.81,0.00027945,2]
[311625211,1705266646243,-500.0,0.00027945,2]
[311625213,1705266646252,-500.0,0.00027945,2]
[311625214,1705266646261,-668.73,0.00027945,2]
[311625215,1705266646271,-1564.37,0.00027945,2]
[311625216,1705266646280,-8807.24,0.00027945,2]
[311625217,1705266646290,-500.0,0.00027945,2]
[311625218,1705266646301,-500.0,0.00027945,2]
[311625219,1705266646309,-500.0,0.00027945,2]
[311625220,1705266646320,-500.0,0.00027945,2]
[311625221,1705266646328,-504.78,0.00027945,2]
[311625222,1705266646339,-4550.62,0.00027945,2]
[311625223,1705266646348,-500.0,0.00027945,2]
[311625224,1705266646357,-947.44,0.00027945,2]
[311625225,1705266646367,-1651.25,0.00027945,2]
[311625226,1705266646377,-500.0,0.00027945,2]
[311625228,1705266646386,-500.0,0.00027945,2]
[311625230,1705266646395,-500.0,0.00027945,2]
[311625231,1705266646404,-616.08704125,0.00027945,2]
[311625232,1705266646413,-1425.76,0.00027945,2]
[311625233,1705266646422,-3191.36,0.00027945,2]
[311625234,1705266646431,-500.0,0.00027945,2]
[311625236,1705266646440,-500.0,0.00027945,2]
[311625238,1705266646449,-500.0,0.00027945,2]
[311625239,1705266646458,-500.0,0.00027945,2]
[311625240,1705266646467,-500.0,0.00027945,2]
[311625241,1705266646476,-500.0,0.00027945,2]
[311625242,1705266646485,-500.0,0.00027945,2]
[311625243,1705266646494,-523.95040652,0.00027945,2]
[311625244,1705266646505,-500.0,0.00027945,2]
[311625245,1705266646514,-500.41,0.00027945,2]
[311625246,1705266646523,-500.0,0.00027945,2]
[311625247,1705266646532,-500.0,0.00027945,2]
[311625248,1705266646541,-339.50865496,0.00027945,2]
[311625249,1705266646551,-513.83673442,0.00027945,2]
[311625250,1705266646560,-500.0,0.00027945,2]
[311625251,1705266646570,-1544.52,0.00027945,2]
[311625253,1705266646579,-6716.26,0.00027945,2]
[311625254,1705266646588,-500.0,0.00027945,2]
[311625255,1705266646597,-27396.58,0.00027945,2]
[311625256,1705266646606,-2300.39,0.00027945,2]
[311625257,1705266646615,-1286.67,0.00027945,2]
[311625258,1705266646624,-2826.12,0.00027945,2]
[311625259,1705266646633,-20020.85,0.00027945,2]
[311625260,1705266646643,-1528.79,0.00027945,2]
[311625261,1705266646652,-500.0,0.00027945,2]
[311625262,1705266646661,-500.0,0.00027945,2]
[311625263,1705266646670,-763.67,0.00027945,2]
[311625264,1705266646680,-500.0,0.00027945,2]
[311625265,1705266646689,-945.45,0.00027945,2]
[311625266,1705266646698,-500.0,0.00027945,2]
[311625267,1705266646709,-500.0,0.00027945,2]
[311625268,1705266646718,-2834.52,0.00027945,2]
[311625269,1705266646728,-500.0,0.00027945,2]
[311625270,1705266646737,-500.0,0.00027945,2]
[311625271,1705266646746,-500.0,0.00027945,2]
[311625272,1705266646756,-500.0,0.00027945,2]
[311625273,1705266646765,-500.0,0.00027945,2]
[311625274,1705266646775,-500.0,0.00027945,2]
[311625275,1705266646784,-500.0,0.00027945,2]
[311625276,1705266646793,-826.32,0.00027945,2]
[311625277,1705266646802,-500.0,0.00027945,2]
[311625278,1705266646812,-500.0,0.00027945,2]
[311625279,1705266646822,-500.0,0.00027945,2]
[311625280,1705266646831,-500.0,0.00027945,2]
[311625281,1705266646840,-500.0,0.00027945,2]
[311625282,1705266646849,-1177.91,0.00027945,2]
[311625283,1705266646859,-500.0,0.00027945,2]
[311625284,1705266646868,-7712.34,0.00027945,2]
[311625285,1705266646877,-500.0,0.00027945,2]
[311625286,1705266646886,-524.16,0.00027945,2]
[311625287,1705266646896,-500.0,0.00027945,2]
[311625288,1705266646904,-500.0,0.00027945,2]
[311625289,1705266646913,-500.0,0.00027945,2]
[311625290,1705266646922,-1786.88,0.00027945,2]
[311625291,1705266646931,-4109.29344934,0.00028,2]
[311625292,1705266646940,-500.0,0.00028082,2]
[311625293,1705266646949,-154.25242066,0.00028172,2]
[311625294,1705266646958,-2201.288509,0.00028219,2]
[311625295,1705266646968,-2201.288509,0.00028219,2]
[311625296,1705266646977,-151.0,0.00028219,2]
[311625297,1705266646987,-151.0,0.00028219,2]
[311625298,1705266646996,-500.0,0.00028219,2]
[311625299,1705266647005,-500.0,0.00028219,2]
[311625300,1705266647014,-500.0,0.00028219,2]
[311625301,1705266647023,-649.62048266,0.00028219,2]
[311625302,1705266647032,-462.43128384,0.00028219,2]
[311625303,1705266647041,-254.25658463,0.00028219,2]
[311625304,1705266647050,-503.70058373,0.00028219,2]
[311625305,1705266647059,-500.0,0.00028219,2]
[311625306,1705266647069,-500.0,0.00028219,2]
[311625307,1705266647079,-500.0,0.00028219,2]
[311625308,1705266647089,-500.0,0.00028219,2]
[311625309,1705266647098,-1159.91,0.00028219,2]
[311625310,1705266647107,-500.0,0.00028219,2]
[311625311,1705266647116,-534.94,0.00028219,2]
[311625312,1705266647125,-820.87,0.00028219,2]
[311625313,1705266647133,-1441.28,0.00028219,2]
[311625314,1705266647142,-500.0,0.00028219,2]
[311625315,1705266647151,-500.0,0.00028219,2]
[311625316,1705266647160,-500.0,0.00028219,2]
[311625317,1705266647169,-500.0,0.00028219,2]
[311625318,1705266647178,-500.0,0.00028219,2]
[311625319,1705266647187,-500.0,0.00028219,2]
[311625320,1705266647195,-500.0,0.00028219,2]
[311625321,1705266647205,-753.26,0.00028219,2]
[311625322,1705266647214,-500.0,0.00028219,2]
[311625323,1705266647223,-500.0,0.00028219,2]
[311625324,1705266647231,-2434.17,0.00028219,2]
[311625325,1705266647240,-1022.38,0.00028219,2]
[311625326,1705266647250,-500.0,0.00028219,2]
[311625327,1705266647258,-500.0,0.00028219,2]
[311625328,1705266647267,-500.0,0.00028219,2]
[311625329,1705266647276,-500.0,0.00028219,2]
[311625330,1705266647285,-500.0,0.00028219,2]
[311625331,1705266647294,-794.99,0.00028219,2]
[311625332,1705266647303,-1823.32,0.00028219,2]
[311625333,1705266647312,-722.39,0.00028219,2]
[311625334,1705266647321,-500.0,0.00028219,2]
[311625335,1705266647330,-500.0,0.00028219,2]
[311625336,1705266647339,-500.0,0.00028219,2]
[311625337,1705266647349,-500.0,0.00028219,2]
[311625338,1705266647357,-619.09681012,0.00028219,2]
[311625339,1705266647367,-500.0,0.00028219,2]
[311625340,1705266647375,-151.3743688,0.00028219,2]
[311625341,1705266647385,-500.0,0.00028219,2]
[311625342,1705266647394,-500.0,0.00028219,2]
[311625343,1705266647403,-500.0,0.00028219,2]
[311625344,1705266647477,-500.0,0.00028219,2]
[311625345,1705266647487,-500.0,0.00028219,2]
[311625346,1705266647496,-500.0,0.00028219,2]
[311625347,1705266647505,-500.0,0.00028219,2]
[311625348,1705266647515,-500.0,0.00028219,2]
[311625349,1705266647524,-500.0,0.00028219,2]
[311625350,1705266647533,-794.56,0.00028219,2]
[311625351,1705266647542,-500.0,0.00028219,2]
[311625352,1705266647551,-606.46,0.00028219,2]
[311625353,1705266647560,-500.0,0.00028219,2]
[311625354,1705266647569,-876.52,0.00028219,2]
[311625355,1705266647578,-500.0,0.00028219,2]
[311625356,1705266647587,-658.71,0.00028219,2]
[311625357,1705266647596,-339.64201464,0.00028219,2]
[311625358,1705266647605,-500.0,0.00028219,2]
[311625359,1705266647614,-500.0,0.00028219,2]
[311625360,1705266647623,-843.34,0.00028219,2]
[311625361,1705266647632,-1628.13,0.00028219,2]
[311625362,1705266647641,-1334.75,0.00028219,2]
[311625363,1705266647650,-500.0,0.00028219,2]
[311625364,1705266647658,-500.0,0.00028219,2]
[311625365,1705266647667,-500.0,0.00028219,2]
[311625366,1705266647675,-500.0,0.00028219,2]
[311625367,1705266647684,-7019.81,0.00028219,2]
[311625368,1705266647693,-668.73,0.00028219,2]
[311625369,1705266647702,-1564.37,0.00028219,2]
[311625370,1705266647710,-8807.24,0.00028219,2]
[311625371,1705266647719,-500.0,0.00028219,2]
[311625372,1705266647728,-504.78,0.00028219,2]
[311625373,1705266647737,-4550.62,0.00028219,2]
[311625374,1705266647745,-947.44,0.00028219,2]
[311625375,1705266647754,-1651.25,0.00028219,2]
[311625376,1705266647763,-1425.76,0.00028219,2]
[311625377,1705266647772,-3191.36,0.00028219,2]
[311625378,1705266647780,-500.0,0.00028219,2]
[311625379,1705266647789,-500.0,0.00028219,2]
[311625380,1705266647798,-500.0,0.00028219,2]
[311625381,1705266647807,-500.0,0.00028219,2]
[311625382,1705266647816,-500.0,0.00028219,2]
[311625383,1705266647825,-500.0,0.00028219,2]
[311625384,1705266647834,-500.0,0.00028219,2]
[311625385,1705266647844,-500.0,0.00028219,2]
[311625386,1705266647852,-500.41,0.00028219,2]
[311625387,1705266647862,-500.0,0.00028219,2]
[311625388,1705266647871,-1544.52,0.00028219,2]
[311625389,1705266647880,-6716.26,0.00028219,2]
[311625390,1705266647889,-500.0,0.00028219,2]
[311625391,1705266647898,-27396.58,0.00028219,2]
[311625392,1705266647907,-2300.39,0.00028219,2]
[311625393,1705266647916,-1286.67,0.00028219,2]
[311625394,1705266647925,-2826.12,0.00028219,2]
[311625395,1705266647935,-20020.85,0.00028219,2]
[311625396,1705266647945,-1528.79,0.00028219,2]
[311625397,1705266647954,-500.0,0.00028219,2]
[311625398,1705266647963,-500.0,0.00028219,2]
[311625399,1705266647972,-763.67,0.00028219,2]
[311625400,1705266647981,-500.0,0.00028219,2]
[311625401,1705266647990,-945.45,0.00028219,2]
[311625402,1705266647999,-500.0,0.00028219,2]
[311625403,1705266648008,-500.0,0.00028219,2]
[311625404,1705266648018,-2834.52,0.00028219,2]
[311625405,1705266648026,-500.0,0.00028219,2]
[311625406,1705266648036,-500.0,0.00028219,2]
[311625407,1705266648045,-500.0,0.00028219,2]
[311625408,1705266648055,-500.0,0.00028219,2]
[311625409,1705266648064,-500.0,0.00028219,2]
[311625410,1705266648073,-500.0,0.00028219,2]
[311625411,1705266648085,-500.0,0.00028219,2]
[311625412,1705266648094,-826.32,0.00028219,2]
[311625413,1705266648103,-500.0,0.00028219,2]
[311625414,1705266648111,-500.0,0.00028219,2]
[311625415,1705266648120,-507.50239065,0.00028219,2]
[311625416,1705266648128,-500.0,0.00028219,2]
[311625417,1705266648137,-500.0,0.00028219,2]
[311625418,1705266648146,-1177.91,0.00028219,2]
[311625419,1705266648155,-7712.34,0.00028219,2]
[311625420,1705266648164,-524.16,0.00028219,2]
[311625421,1705266648173,-519.9792115,0.00028219,2]
[311625422,1705266648182,-500.0,0.00028219,2]
[311625423,1705266648192,-1786.88,0.00028219,2]
[311625424,1705266648201,-500.0,0.00028315,7]
[311625425,1705266648210,-500.0,0.00028315,7]
[311625426,1705266648219,-500.0,0.00028315,7]
[311625427,1705266648228,-515.44,0.00028315,7]
[311625428,1705266648238,-500.0,0.00028356,2]
[311625429,1705266648247,-2000.0,0.000284,2]
[311625430,1705266648256,-462.0,0.000284,2]
[311625431,1705266648266,-2000.0,0.0002841,2]
[311625432,1705266648274,-2000.0,0.0002842,2]
[311625433,1705266648283,-2000.0,0.0002843,2]
[311625434,1705266648296,-2000.0,0.0002844,2]
[311625435,1705266648305,-2000.0,0.0002845,2]
[311625436,1705266648314,-2000.0,0.0002846,2]
[311625437,1705266648324,-2000.0,0.0002847,2]
[311625438,1705266648334,-2000.0,0.0002848,2]
[311625439,1705266648344,-2000.0,0.0002849,2]
[311625440,1705266648353,-151.0,0.0002849,2]
[311625441,1705266648362,-151.0,0.0002849,2]
[311625442,1705266648373,-151.0,0.00028493,2]
[311625443,1705266648382,-2201.288509,0.00028493,2]
[311625444,1705266648392,-2201.288509,0.00028493,2]
[311625445,1705266648401,-2201.288509,0.00028493,2]
[311625446,1705266648410,-2201.288509,0.00028493,2]
[311625447,1705266648419,-151.0,0.00028493,2]
[311625448,1705266648428,-151.0,0.00028493,2]
[311625449,1705266648437,-500.0,0.00028493,2]
[311625450,1705266648446,-643.66658219,0.00028493,2]
[311625451,1705266648455,-500.0,0.00028493,2]
[311625452,1705266648465,-500.0,0.00028493,2]
[311625453,1705266648474,-581.76926559,0.00028493,2]
[311625454,1705266648483,-500.0,0.00028493,2]
[311625455,1705266648492,-1159.91,0.00028493,2]
[311625456,1705266648502,-500.0,0.00028493,2]
[311625457,1705266648511,-534.94,0.00028493,2]
[311625458,1705266648520,-820.87,0.00028493,2]
[311625459,1705266648529,-1441.28,0.00028493,2]
[311625460,1705266648539,-500.0,0.00028493,2]
[311625461,1705266648548,-500.0,0.00028493,2]
[311625462,1705266648557,-500.0,0.00028493,2]
[311625463,1705266648566,-500.0,0.00028493,2]
[311625464,1705266648575,-500.0,0.00028493,2]
[311625465,1705266648584,-500.0,0.00028493,2]
[311625466,1705266648594,-753.26,0.00028493,2]
[311625467,1705266648603,-500.0,0.00028493,2]
[311625468,1705266648612,-500.0,0.00028493,2]
[311625469,1705266648621,-2434.17,0.00028493,2]
[311625470,1705266648630,-1022.38,0.00028493,2]
[311625471,1705266648639,-500.0,0.00028493,2]
[311625472,1705266648648,-416.6322573,0.00028493,2]
[311625473,1705266648657,-500.0,0.00028493,2]
[311625474,1705266648666,-500.0,0.00028493,2]
[311625475,1705266648675,-500.0,0.00028493,2]
[311625476,1705266648684,-794.99,0.00028493,2]
[311625477,1705266648693,-1823.32,0.00028493,2]
[311625478,1705266648702,-722.39,0.00028493,2]
[311625479,1705266648711,-500.0,0.00028493,2]
[311625480,1705266648720,-500.0,0.00028493,2]
[311625481,1705266648728,-500.0,0.00028493,2]
[311625482,1705266648738,-500.0,0.00028493,2]
[311625483,1705266648747,-500.0,0.00028493,2]
[311625484,1705266648756,-500.0,0.00028493,2]
[311625485,1705266648765,-500.0,0.00028493,2]
[311625486,1705266648774,-500.0,0.00028493,2]
[311625487,1705266648783,-500.0,0.00028493,2]
[311625488,1705266648792,-500.0,0.00028493,2]
[311625489,1705266648801,-500.0,0.00028493,2]
[311625490,1705266648810,-526.26028446,0.00028493,2]
[311625491,1705266648821,-500.0,0.00028493,2]
[311625492,1705266648830,-794.56,0.00028493,2]
[311625493,1705266648838,-606.46,0.00028493,2]
[311625494,1705266648847,-500.0,0.00028493,2]
[311625495,1705266648856,-876.52,0.00028493,2]
[311625496,1705266648865,-500.0,0.00028493,2]
[311625497,1705266648874,-658.71,0.00028493,2]
[311625498,1705266648883,-500.0,0.00028493,2]
[311625499,1705266648892,-843.34,0.00028493,2]
[311625500,1705266648900,-1628.13,0.00028493,2]
[311625501,1705266648973,-1334.75,0.00028493,2]
[311625502,1705266648983,-500.0,0.00028493,2]
[311625503,1705266648993,-629.07086596,0.00028493,2]
[311625504,1705266649001,-7019.81,0.00028493,2]
[311625505,1705266649010,-668.73,0.00028493,2]
[311625506,1705266649020,-1564.37,0.00028493,2]
[311625507,1705266649029,-8807.24,0.00028493,2]
[311625508,1705266649039,-500.0,0.00028493,2]
[311625509,1705266649048,-504.78,0.00028493,2]
[311625510,1705266649057,-4550.62,0.00028493,2]
[311625511,1705266649067,-947.44,0.00028493,2]
[311625512,1705266649080,-1651.25,0.00028493,2]
[311625513,1705266649089,-1425.76,0.00028493,2]
[311625514,1705266649099,-3191.36,0.00028493,2]
[311625515,1705266649108,-500.0,0.00028493,2]
[311625516,1705266649117,-500.0,0.00028493,2]
[311625517,1705266649127,-500.0,0.00028493,2]
[311625518,1705266649136,-500.0,0.00028493,2]
[311625519,1705266649145,-500.0,0.00028493,2]
[311625520,1705266649154,-500.0,0.00028493,2]
[311625521,1705266649163,-500.0,0.00028493,2]
[311625522,1705266649173,-500.41,0.00028493,2]
[311625523,1705266649183,-1544.52,0.00028493,2]
[311625524,1705266649192,-6716.26,0.00028493,2]
[311625525,1705266649201,-27396.58,0.00028493,2]
[311625526,1705266649211,-2300.39,0.00028493,2]
[311625527,1705266649221,-1286.67,0.00028493,2]
[311625528,1705266649231,-2826.12,0.00028493,2]
[311625529,1705266649240,-20020.85,0.00028493,2]
[311625530,1705266649250,-1528.79,0.00028493,2]